bitfinex-derivatives/quotes_SOLF0:USTF0_20250212
["timestamp","ask_amount","ask_price","bid_price","bid_amount"]
[1739392634291,14.2496574,194.57,194.49,7.04367418]
[1739392634590,5.1395,194.56,194.5,5.1409]
[1739392635189,5.1398,194.55,194.49,12.18497418]
[1739392635389,5.17615486,194.55,194.51,0.03652533]
[1739392637692,5.1401,194.54,194.51,0.03652533]
[1739392638394,0.03635486,194.55,194.51,0.03652533]
[1739392638895,0.03635486,194.55,194.52,5.1406]
[1739392639081,0.03635486,194.55,194.51,0.03652533]
[1739392639490,0.03635486,194.55,194.54,5.14]
[1739392639787,14.2496574,194.66,194.54,14.2496574]
[1739392639986,4.7767,194.67,194.57,14.2496574]
[1739392640894,0.03308947,194.64,194.6,0.03467917]
[1739392641396,0.03308947,194.64,194.61,5.1379]
[1739392641989,0.03308947,194.64,194.6,0.03467917]
[1739392643595,0.03308947,194.64,194.63,5.1377]
[1739392652011,0.03308947,194.64,194.6,0.03467917]
[1739392653013,0.03308947,194.64,194.6,5.17297917]
[1739392653310,0.03308947,194.64,194.6,0.03467917]
[1739392653615,0.03308947,194.64,194.6,14.28433657]
[1739392653916,0.03308947,194.64,194.63,5.1377]
[1739392656919,0.03308947,194.64,194.6,0.03467917]
[1739392657720,5.1377,194.63,194.6,0.03467917]
[1739392658622,5.1379,194.62,194.6,0.03467917]
[1739392658820,14.2496574,194.63,194.6,0.03467917]
[1739392659222,5.139,194.58,194.56,28.17469674]
[1739392659822,17.3337574,194.63,194.56,28.17469674]
[1739392660321,5.17357319,194.61,194.58,0.03495539]
[1739392661824,5.1385,194.6,194.58,0.03495539]
[1739392663323,5.17337319,194.61,194.58,0.03495539]
[1739392664524,0.03517319,194.61,194.58,0.03495539]
[1739392665423,5.17337319,194.61,194.58,0.03495539]
[1739392666125,5.1385,194.6,194.58,0.03495539]
[1739392668026,5.1387,194.59,194.58,0.03495539]
[1739392669432,0.03517319,194.61,194.6,5.1384]
[1739392674838,0.03517319,194.61,194.58,0.03495539]
[1739392676030,5.17347319,194.61,194.58,0.03495539]
[1739392676935,5.1387,194.59,194.58,0.03495539]
[1739392677129,18.8375574,194.6,194.53,28.13204369]
[1739392677734,18.8375574,194.6,194.52,5.1404]
[1739392678134,5.1396,194.56,194.52,5.1404]
[1739392678433,5.17199012,194.56,194.54,0.03368808]
[1739392680337,0.03239012,194.56,194.54,0.03368808]
[1739392680536,5.1398,194.55,194.54,0.03368808]
[1739392683533,5.17199012,194.56,194.54,0.03368808]
[1739392683733,0.03239012,194.56,194.54,0.03368808]
[1739392684344,5.1398,194.55,194.54,0.03368808]
[1739392686343,0.03239012,194.56,194.5,5.1411]
[1739392686544,0.03239012,194.56,194.45,42.38170109]
[1739392686545,0.03239012,194.56,194.48,5.1415]
[1739392686742,14.2496574,194.54,194.45,28.13204369]
[1739392686936,5.1417,194.48,194.45,28.13204369]
[1739392687134,14.2496574,194.51,194.45,28.13204369]
[1739392687532,0.0379065,194.5,194.45,28.13204369]
[1739392687737,5.1421,194.47,194.43,5.1427]
[1739392690642,0.0379065,194.5,194.41,28.13204369]
[1739392690845,14.2496574,194.51,194.41,28.13204369]
[1739392691142,0.03655386,194.47,194.41,28.13204369]
[1739392691339,0.03655386,194.47,194.42,14.2496574]
[1739392691933,0.03655386,194.47,194.45,5.1422]
[1739392693342,0.03655386,194.47,194.43,5.1427]
[1739392693734,0.03655386,194.47,194.39,17.4323574]
[1739392693939,0.03655386,194.47,194.44,5.1426]
[1739392696545,0.03655386,194.47,194.42,14.2496574]
[1739392696747,0.03655386,194.47,194.46,5.1421]
[1739392699549,0.03655386,194.47,194.45,5.1423]
[1739392700551,0.03655386,194.47,194.39,17.4323574]
[1739392700747,5.1424,194.45,194.39,17.4323574]
[1739392701143,5.1424,194.45,194.42,5.1432]
[1739392701854,5.1429,194.44,194.4,5.1436]
[1739392704354,0.03655386,194.47,194.39,1.6379]
[1739392704555,5.1424,194.46,194.42,5.143]
[1739392705455,5.1424,194.46,194.43,5.1429]
[1739392705748,0.03655386,194.47,194.39,15.8875574]
[1739392706458,0.03655386,194.47,194.44,5.1425]
[1739392706855,0.03655386,194.47,194.45,5.1424]
[1739392707057,0.03655386,194.47,194.39,15.8875574]
[1739392707757,5.17855386,194.47,194.39,15.8875574]
[1739392708560,5.17855386,194.47,194.43,5.1427]
[1739392709364,5.1425,194.45,194.41,5.1433]
[1739392709657,14.2496574,194.45,194.35,1.561]
[1739392709854,14.28579493,194.45,194.35,1.561]
[1739392710054,14.28579493,194.45,194.38,5.144]
[1739392710260,14.28579493,194.45,194.34,29.75514369]
[1739392710459,5.1437,194.41,194.36,5.1446]
[1739392710659,14.2496574,194.45,194.36,5.1446]
[1739392710862,0.03382246,194.4,194.36,5.1446]
[1739392711258,5.17762246,194.4,194.36,5.1446]
[1739392711458,0.03382246,194.4,194.34,33.27714369]
[1739392711665,5.1443,194.38,194.34,33.27714369]
[1739392712360,5.1445,194.37,194.34,33.27714369]
[1739392712562,5.1445,194.37,194.32,33.27774369]
[1739392714162,5.1445,194.37,194.33,5.1455]
[1739392715165,0.03382246,194.4,194.32,28.13204369]
[1739392715464,5.17772246,194.4,194.35,5.1448]
[1739392715664,0.03382246,194.4,194.32,28.13204369]
[1739392715868,0.03382246,194.4,194.3,14.2496574]
[1739392716064,0.03382246,194.4,194.32,1.5735]
[1739392716567,5.17762246,194.4,194.36,5.1447]
[1739392720468,5.1441,194.39,194.3,14.2496574]
[1739392720765,5.1441,194.39,194.35,5.145]
[1739392722572,14.2496574,194.39,194.32,5.1456]
[1739392722867,15.8162574,194.39,194.28,8.58961092]
[1739392723067,0.03295768,194.37,194.28,8.58961092]
[1739392723471,14.2496574,194.36,194.28,8.58961092]
[1739392723672,14.2496574,194.36,194.28,7.03301092]
[1739392723873,5.1451,194.35,194.31,5.1461]
[1739392724068,0.03295768,194.37,194.28,7.03301092]
[1739392724773,0.03295768,194.37,194.32,5.1456]
[1739392725172,14.2496574,194.36,194.32,5.1456]
[1739392725369,14.2496574,194.33,194.28,7.03301092]
[1739392725975,0.03444065,194.32,194.28,7.03301092]
[1739392726274,5.18034065,194.32,194.24,28.13204369]
[1739392727173,5.18034065,194.32,194.27,5.1471]
[1739392727375,14.2496574,194.3,194.24,28.13204369]
[1739392728473,14.2496574,194.27,194.24,28.13204369]
[1739392728874,5.1477,194.25,194.24,28.13204369]
[1739392729774,5.1477,194.25,194.2,5.1488]
[1739392730571,14.28245354,194.27,194.18,7.03301092]
[1739392730775,0.03279614,194.27,194.2,14.2496574]
[1739392731376,0.03279614,194.27,194.24,5.1478]
[1739392732270,0.03279614,194.27,194.25,5.1477]
[1739392732767,0.03279614,194.27,194.26,5.1474]
[1739392733475,14.2496574,194.36,194.23,14.2496574]
[1739392733678,5.1457,194.33,194.29,5.1464]
[1739392733880,1.4996,194.38,194.26,14.2496574]
[1739392734180,5.1446,194.37,194.26,14.2496574]
[1739392734366,5.1446,194.37,194.29,14.2496574]
[1739392734572,116.1496574,194.42,194.29,14.2496574]
[1739392734771,116.1496574,194.42,194.31,0.03341224]
[1739392734772,0.03858004,194.35,194.31,0.03341224]
[1739392735576,0.03858004,194.35,194.34,5.1453]
[1739392736075,5.1453,194.34,194.31,0.03341224]
[1739392736272,14.2496574,194.33,194.31,0.03341224]
[1739392736775,0.03858004,194.35,194.31,0.03341224]
[1739392740082,0.03858004,194.35,194.31,5.17941224]
[1739392743285,5.18368004,194.35,194.31,5.17941224]
[1739392743482,0.03858004,194.35,194.31,0.03341224]
[1739392743983,5.1458,194.32,194.31,0.03341224]
[1739392748285,14.2496574,194.33,194.2,28.13204369]
[1739392748485,14.2496574,194.26,194.2,28.13204369]
[1739392748787,5.1484,194.23,194.2,28.13204369]
[1739392749086,14.2496574,194.23,194.2,28.13204369]
[1739392749482,5.1488,194.21,194.2,28.13204369]
[1739392750382,19.4362041,194.23,194.2,28.13204369]
[1739392750588,5.1865467,194.23,194.2,28.13204369]
[1739392750788,0.0381467,194.23,194.16,4.74036674]
[1739392751692,0.0381467,194.23,194.18,5.1495]
[1739392752390,0.0381467,194.23,194.17,14.2496574]
[1739392752590,0.0381467,194.23,194.2,14.2496574]
[1739392752887,5.1461,194.31,194.24,5.1478]
[1739392753196,5.1461,194.31,194.21,3.224]
[1739392753387,14.2496574,194.35,194.26,5.1474]
[1739392753696,14.2496574,194.35,194.23,14.2496574]
[1739392753894,4.6672,194.37,194.23,14.2496574]
[1739392754089,0.03318477,194.32,194.29,0.03668064]
[1739392755096,0.03318477,194.32,194.29,5.18308064]
[1739392755496,0.03318477,194.32,194.29,0.03668064]
[1739392755797,14.28284217,194.32,194.29,0.03668064]
[1739392756096,5.147,194.28,194.22,5.1484]
[1739392756296,14.2496574,194.27,194.22,5.1484]
[1739392757192,0.03875855,194.26,194.24,5.148]
[1739392757394,14.2496574,194.3,194.24,5.148]
[1739392757697,0.03790758,194.27,194.2,28.13204369]
[1739392757902,0.03790758,194.27,194.25,5.1475]
[1739392758397,0.03790758,194.27,194.26,5.1474]
[1739392762699,0.03790758,194.27,194.25,5.1476]
[1739392763299,0.03790758,194.27,194.24,5.1479]
[1739392763697,0.03790758,194.27,194.2,1.6585]
[1739392763900,0.03790758,194.27,194.23,5.1482]
[1739392764405,5.18510758,194.27,194.23,5.1482]
[1739392770106,5.18510758,194.27,194.24,5.1479]
[1739392770309,5.1472,194.27,194.24,5.1479]
[1739392770503,5.18434978,194.27,194.24,5.1479]
[1739392772006,0.03714978,194.27,194.26,5.1474]
[1739392773808,0.03714978,194.27,194.25,5.1476]
[1739392776211,0.03714978,194.27,194.18,14.2496574]
[1739392776512,0.03714978,194.27,194.16,28.13204369]
[1739392776714,0.03714978,194.27,194.18,7.03301092]
[1739392778113,5.1481,194.24,194.2,5.1488]
[1739392778313,5.1481,194.24,194.18,7.03301092]
[1739392778519,5.1481,194.24,194.2,5.1488]
[1739392778716,0.03257837,194.23,194.2,5.1488]
[1739392778918,5.18087837,194.23,194.2,5.1488]
[1739392779623,5.1486,194.22,194.18,5.1493]
[1739392784719,5.1486,194.22,194.19,5.1492]
[1739392785219,5.1491,194.2,194.13,7.03301092]
[1739392785420,5.1491,194.2,194.16,5.1499]
[1739392785814,0.03903398,194.18,194.15,5.1503]
[1739392787623,0.03903398,194.18,194.17,5.1498]
[1739392791625,5.1482,194.24,194.19,5.1491]
[1739392792524,5.1482,194.24,194.2,5.149]
[1739392792727,0.03423513,194.23,194.2,5.18359021]
[1739392793226,0.03423513,194.23,194.21,5.1487]
[1739392794927,0.03423513,194.23,194.2,0.03459021]
[1739392795126,0.03423513,194.23,194.22,5.1485]
[1739392796528,5.1467,194.29,194.25,5.1475]
[1739392796920,14.2496574,194.34,194.21,14.2496574]
[1739392797120,5.1462,194.31,194.27,5.147]
[1739392797328,14.2496574,194.34,194.27,5.147]
[1739392797827,0.0378982,194.32,194.29,0.03755544]
[1739392798029,5.1464,194.3,194.29,0.03755544]
[1739392800224,0.0378982,194.32,194.29,0.03755544]
[1739392800428,5.1463,194.31,194.29,0.03755544]
[1739392800625,0.0378982,194.32,194.29,0.03755544]
[1739392800929,0.0378982,194.32,194.31,5.1461]
[1739392802033,19.3935574,194.4,194.29,0.03755544]
[1739392802227,19.3935574,194.4,194.36,5.1448]
[1739392802421,14.2496574,194.43,194.3,14.2496574]
[1739392802826,14.2496574,194.4,194.35,5.145]
[1739392803023,14.2496574,194.4,194.29,3.112]
[1739392803224,14.2496574,194.4,194.36,0.03381122]
[1739392803430,0.03565936,194.39,194.36,0.03381122]
[1739392805034,0.03565936,194.39,194.37,5.1445]
[1739392805530,0.03565936,194.39,194.36,0.03381122]
[1739392805736,0.03565936,194.39,194.38,5.1443]
[1739392809134,0.03565936,194.39,194.36,0.03381122]
[1739392809338,0.03565936,194.39,194.36,5.17841122]
[1739392809535,0.03565936,194.39,194.36,0.03381122]
[1739392810235,0.03565936,194.39,194.38,5.1443]
[1739392810430,15.7986574,194.49,194.36,14.28346862]
[1739392810635,15.7986574,194.49,194.41,5.1433]
[1739392811638,0.03523863,194.47,194.43,0.03802441]
[1739392812137,14.2496574,194.46,194.43,0.03802441]
[1739392813235,5.1427,194.44,194.43,0.03802441]
[1739392815240,5.1422,194.46,194.43,0.03802441]
[1739392816242,0.03523863,194.47,194.43,0.03802441]
[1739392816839,0.03523863,194.47,194.43,5.18092441]
[1739392818238,0.03523863,194.47,194.43,0.03802441]
[1739392818436,0.03523863,194.47,194.45,14.2496574]
[1739392818640,5.1398,194.55,194.45,14.2496574]
[1739392818841,3.1156,194.58,194.48,14.2496574]
[1739392819040,3.1156,194.58,194.45,14.2496574]
[1739392819341,14.2496574,194.56,194.44,4.688]
[1739392819542,3.1156,194.58,194.44,4.688]
[1739392819842,0.03258554,194.52,194.5,5.1408]
[1739392820040,5.1398,194.55,194.5,5.1408]
[1739392820240,0.03336695,194.53,194.5,5.1408]
[1739392820941,0.03336695,194.53,194.51,5.1408]
[1739392821141,0.03336695,194.53,194.49,0.03558821]
[1739392821343,0.03336695,194.53,194.52,5.1406]
[1739392821544,0.03336695,194.53,194.49,0.03558821]
[1739392822542,5.17366695,194.53,194.49,0.03558821]
[1739392823047,0.03336695,194.53,194.49,0.03558821]
[1739392823342,5.1406,194.52,194.49,0.03558821]
[1739392824038,0.03336695,194.53,194.49,0.03558821]
[1739392825139,0.03336695,194.53,194.5,5.1409]
[1739392825845,0.03336695,194.53,194.49,0.03558821]
[1739392826045,5.1406,194.52,194.49,0.03558821]
[1739392827842,5.1409,194.51,194.49,0.03558821]
[1739392828745,5.17376695,194.53,194.49,5.17678821]
[1739392828945,0.03336695,194.53,194.49,0.03558821]
[1739392829341,0.03336695,194.53,194.5,5.1409]
[1739392829543,0.03336695,194.53,194.49,0.03558821]
[1739392830540,0.03336695,194.53,194.52,5.1406]
[1739392833247,0.03336695,194.53,194.51,5.1408]
[1739392834048,0.03336695,194.53,194.49,0.03558821]
[1739392834249,5.17386695,194.53,194.49,5.17668821]
[1739392834544,0.03336695,194.53,194.49,0.03558821]
[1739392834747,14.2496574,194.51,194.49,0.03558821]
[1739392836043,5.1411,194.5,194.49,0.03558821]
[1739392840752,190.0,194.65,194.49,28.53490301]
[1739392840950,2.54145997,194.64,194.55,14.2496574]
[1739392841150,1.6007,194.64,194.55,14.2496574]
[1739392841851,0.03930638,194.61,194.55,14.2496574]
[1739392842051,0.03930638,194.61,194.59,5.1386]
[1739392843153,0.03930638,194.61,194.58,0.03315207]
[1739392845549,0.03930638,194.61,194.58,14.28280947]
[1739392846353,0.03930638,194.61,194.6,5.1385]
[1739392847855,0.03930638,194.61,194.59,5.1387]
[1739392850945,0.03930638,194.61,194.58,0.03315207]
[1739392852060,5.1387,194.59,194.58,0.03315207]
[1739392853060,0.03930638,194.61,194.58,0.03315207]
[1739392854257,0.03930638,194.61,194.58,5.17195207]
[1739392855160,0.03930638,194.61,194.6,5.1384]
[1739392859456,0.03930638,194.61,194.6,19.3880574]
[1739392860562,0.03930638,194.61,194.6,5.1384]
[1739392860758,0.03930638,194.61,194.58,5.17185207]
[1739392862463,5.1386,194.6,194.58,0.03315207]
[1739392862866,0.03930638,194.61,194.58,0.03315207]
[1739392863163,5.1387,194.59,194.58,0.03315207]
[1739392863561,1.5609,194.6,194.52,28.13204369]
[1739392863765,1.5609,194.6,194.53,5.1402]
[1739392864564,1.5609,194.6,194.55,0.03365851]
[1739392865165,0.03930638,194.61,194.55,14.28331591]
[1739392865762,0.03930638,194.61,194.55,0.03365851]
[1739392866960,5.1389,194.59,194.55,0.03365851]
[1739392867966,5.1389,194.59,194.55,5.17345851]
[1739392868669,5.1385,194.6,194.56,5.1392]
[1739392868869,5.1385,194.6,194.55,0.03365851]
[1739392870174,5.1385,194.6,194.57,5.1392]
[1739392870678,5.17750638,194.61,194.58,5.139]
[1739392872286,0.03930638,194.61,194.55,0.03365851]
[1739392872883,0.03930638,194.61,194.6,5.1385]
[1739392873983,0.03930638,194.61,194.6,19.3881574]
[1739392877387,5.17017858,194.68,194.64,5.17612463]
[1739392879187,5.17017858,194.68,194.65,5.1371]
[1739392880992,9.12385513,194.67,194.64,5.17622463]
[1739392881684,14.26065513,194.67,194.64,0.03892463]
[1739392882283,9.12385513,194.67,194.64,0.03892463]
[1739392882484,5.1369,194.66,194.64,0.03892463]
[1739392885592,14.26095513,194.65,194.64,0.03892463]
[1739392887296,5.1377,194.63,194.6,5.1384]
[1739392887598,14.26155513,194.63,194.6,5.1384]
[1739392888395,14.26155513,194.63,194.59,5.1386]
[1739392888595,14.29971095,194.63,194.6,0.03312209]
[1739392889199,0.03815582,194.63,194.61,5.1382]
[1739392889403,0.03815582,194.63,194.61,14.26205513]
[1739392890896,0.03815582,194.63,194.61,5.1382]
[1739392893604,0.03815582,194.63,194.6,0.03312209]
[1739392893801,5.17595582,194.63,194.6,5.17152209]
[1739392894397,5.17595582,194.63,194.6,0.03312209]
[1739392895204,5.1379,194.62,194.6,0.03312209]
[1739392897605,0.03815582,194.63,194.54,7.03301092]
[1739392898099,5.1392,194.58,194.54,5.14]
[1739392898304,15.91074612,194.64,194.52,28.13204369]
[1739392898895,5.139,194.59,194.56,0.0357323]
[1739392899299,0.03614497,194.6,194.56,0.0357323]
[1739392900107,5.1392,194.57,194.56,0.0357323]
[1739392901305,5.1402,194.54,194.48,7.03301092]
[1739392901499,14.26384612,194.58,194.48,7.03301092]
[1739392902105,5.1405,194.53,194.49,5.1412]
[1739392902498,0.03340113,194.53,194.49,0.0340567]
[1739392904510,5.1406,194.52,194.49,0.0340567]
[1739392906209,0.03340113,194.53,194.49,0.0340567]
[1739392906411,5.1411,194.51,194.49,0.0340567]
[1739392907413,0.03340113,194.53,194.49,0.0340567]
[1739392908414,5.1411,194.51,194.49,0.0340567]
[1739392908716,0.03340113,194.53,194.49,0.0340567]
[1739392909616,5.1411,194.5,194.49,0.0340567]
[1739392911017,14.26384612,194.52,194.38,28.13204369]
[1739392911018,14.26384612,194.49,194.43,5.1428]
[1739392911315,5.1423,194.46,194.41,5.1432]
[1739392911814,9.14511308,194.47,194.41,5.1432]
[1739392912016,0.0367445,194.45,194.42,0.03796945]
[1739392912212,9.18185758,194.45,194.42,0.03796945]
[1739392913014,9.14511308,194.43,194.42,0.03796945]
[1739392913817,9.18185758,194.45,194.42,0.03796945]
[1739392914018,5.1429,194.43,194.42,0.03796945]
[1739392918017,14.28801308,194.43,194.42,0.03796945]
[1739392918821,5.1429,194.43,194.42,0.03796945]
[1739392919027,5.1427,194.44,194.42,0.03796945]
[1739392920328,5.1791445,194.45,194.42,5.18106945]
[1739392920932,9.14511308,194.43,194.42,0.03796945]
[1739392921522,5.1434,194.42,194.37,5.1443]
[1739392921931,9.14511308,194.41,194.34,9.14511308]
[1739392922126,9.14511308,194.37,194.3,9.14511308]
[1739392922725,9.18094692,194.35,194.32,0.03352117]
[1739392922932,9.14511308,194.35,194.28,9.14511308]
[1739392923134,9.18201108,194.35,194.32,0.03473107]
[1739392923332,14.32711108,194.35,194.32,0.03473107]
[1739392923731,0.036898,194.35,194.32,0.03473107]
[1739392923926,5.1456,194.33,194.32,0.03473107]
[1739392924129,5.1456,194.33,194.25,46.9418368]
[1739392924334,0.036898,194.35,194.25,46.9418368]
[1739392924335,5.1466,194.29,194.25,46.9418368]
[1739392925233,5.1459,194.32,194.25,46.9418368]
[1739392925433,0.03566825,194.29,194.25,46.96286177]
[1739392925731,0.03566825,194.29,194.25,40.16975346]
[1739392925933,0.03566825,194.29,194.25,14.32694943]
[1739392926127,0.03566825,194.29,194.27,5.1472]
[1739392926735,0.03566825,194.29,194.25,5.16862497]
[1739392926928,0.03566825,194.29,194.25,0.02102497]
[1739392927333,5.18236825,194.29,194.25,0.02102497]
[1739392928030,5.1472,194.28,194.25,0.02102497]
[1739392928532,5.1474,194.26,194.25,0.02102497]
[1739392930439,5.1478,194.25,194.2,5.1488]
[1739392931340,1.6272,194.28,194.16,15.80882446]
[1739392931536,0.0391017,194.24,194.16,15.80882446]
[1739392932237,0.0391017,194.24,194.21,5.1487]
[1739392932436,14.30592446,194.35,194.22,14.30592446]
[1739392932633,193.1813,194.37,194.25,14.30592446]
[1739392933337,3.1813,194.37,194.25,14.30592446]
[1739392933740,0.03535962,194.33,194.29,0.03511812]
[1739392934035,0.03535962,194.33,194.3,5.1464]
[1739392935036,0.03535962,194.33,194.32,5.1459]
[1739392936834,5.1436,194.41,194.31,14.30592446]
[1739392938039,0.03288631,194.38,194.34,0.03835833]
[1739392939039,0.03288631,194.38,194.36,5.1446]
[1739392940439,0.03288631,194.38,194.34,0.03835833]
[1739392940643,0.03288631,194.38,194.34,5.18355833]
[1739392941236,0.03288631,194.38,194.34,0.03835833]
[1739392941442,0.03288631,194.38,194.36,5.1447]
[1739392943142,0.03288631,194.38,194.34,5.18345833]
[1739392943843,5.1448,194.36,194.34,0.03835833]
[1739392944043,14.33881077,194.38,194.34,0.03835833]
[1739392945151,5.1451,194.35,194.34,0.03835833]
[1739392945542,14.30592446,194.35,194.29,28.13204369]
[1739392945749,5.1457,194.33,194.29,33.27854369]
[1739392945949,14.30592446,194.35,194.29,28.13204369]
[1739392946652,5.1462,194.31,194.29,28.13204369]
[1739392946852,5.1462,194.31,194.3,0.03271789]
[1739392949349,0.03514378,194.34,194.3,0.03271789]
[1739392951156,5.1461,194.31,194.3,0.03271789]
[1739392951854,0.03514378,194.34,194.3,0.03271789]
[1739392953054,0.03514378,194.34,194.3,5.17901789]
[1739392953255,0.03514378,194.34,194.3,0.03271789]
[1739392954258,14.34106824,194.34,194.3,0.03271789]
[1739392955058,5.1461,194.31,194.3,0.03271789]
[1739392958959,19.45202446,194.31,194.3,0.03271789]
[1739392959258,5.1467,194.29,194.25,5.1476]
[1739392959659,14.30835107,194.29,194.25,5.1476]
[1739392960256,14.30835107,194.29,194.23,23.97594154]
[1739392960257,14.30905107,194.27,194.23,23.97594154]
[1739392960454,14.30905107,194.27,194.23,5.1482]
[1739392960855,14.30905107,194.27,194.22,5.1484]
[1739392961256,5.1475,194.26,194.22,5.1484]
[1739392962659,5.1472,194.27,194.24,5.1479]
[1739392962860,14.31583261,194.34,194.21,14.31583261]
[1739392963159,0.03888039,194.27,194.21,14.31583261]
[1739392963459,0.03888039,194.27,194.26,5.1473]
[1739392967163,5.1475,194.26,194.23,5.1481]
[1739392968865,5.1482,194.24,194.2,33.28104369]
[1739392969056,0.03888039,194.27,194.2,33.28104369]
[1739392969262,3.16158039,194.27,194.2,28.13204369]
[1739392969462,5.1487,194.22,194.2,28.13204369]
[1739392969962,5.1487,194.22,194.19,28.13204369]
[1739392970163,5.1488,194.21,194.19,28.13204369]
[1739392971959,5.1488,194.21,194.17,61.4138874]
[1739392972165,5.1485,194.22,194.17,5.1498]
[1739392972965,5.1485,194.22,194.18,5.1495]
[1739392974069,0.03862883,194.23,194.16,1.6116]
[1739392975167,0.03862883,194.23,194.22,5.1485]
[1739392979667,0.03862883,194.23,194.17,7.03301092]
[1739392980369,0.03862883,194.23,194.2,5.1489]
[1739392982172,0.03862883,194.23,194.21,5.1488]
[1739392984673,0.03862883,194.23,194.18,9.16473739]
[1739392985373,0.03862883,194.23,194.21,5.1486]
[1739392987974,5.1487,194.22,194.16,56.12452262]
[1739392988677,5.1487,194.22,194.18,5.1495]
[1739392989877,5.1487,194.22,194.19,5.1492]
[1739392990378,9.20336622,194.23,194.18,9.16473739]
[1739392990575,0.03862883,194.23,194.2,5.149]
[1739392991780,5.1487,194.22,194.18,5.1496]
[1739392991972,9.16473739,194.21,194.18,5.1496]
[1739392992370,14.35166622,194.23,194.19,5.1492]
[1739392992571,9.20336622,194.23,194.19,5.1492]
[1739392992881,5.1488,194.21,194.18,5.1496]
[1739392993681,5.1491,194.2,194.17,5.1497]
[1739392993877,9.16473739,194.21,194.16,46.95978523]
[1739392994081,5.18692883,194.23,194.2,5.149]
[1739392994280,0.03862883,194.23,194.2,9.16473739]
[1739392995283,0.03862883,194.23,194.22,5.1485]
[1739393001391,0.03862883,194.23,194.2,7.03301092]
[1739393001392,0.03862883,194.23,194.2,12.18191092]
[1739393001886,9.16473739,194.21,194.2,7.03301092]
[1739393003286,14.31353739,194.21,194.2,7.03301092]
[1739393003491,14.31353739,194.21,194.2,4.53541092]
[1739393003893,5.1491,194.2,194.16,30.78444369]
[1739393004092,9.16473739,194.19,194.16,30.78444369]
[1739393004293,9.16473739,194.19,194.16,25.63444369]
[1739393004494,9.16473739,194.17,194.16,25.63444369]
[1739393005797,14.31453739,194.17,194.16,25.63444369]
[1739393006193,9.16473739,194.17,194.13,122.24123018]
[1739393006400,14.31533739,194.14,194.13,54.15084241]
[1739393006591,14.31533739,194.14,194.13,5.01121508]
[1739393007499,5.1512,194.12,194.11,19.04283843]
[1739393007694,14.34443364,194.12,194.11,19.04283843]
[1739393008601,0.03804155,194.13,194.11,19.04283843]
[1739393010997,0.03804155,194.13,194.11,24.19423843]
[1739393011207,0.03804155,194.13,194.11,5.1514]
[1739393011498,0.03804155,194.13,194.05,14.34443364]
[1739393013005,0.03804155,194.13,194.12,5.1512]
[1739393013507,14.34443364,194.19,194.05,14.34443364]
[1739393013704,19.49373364,194.19,194.15,5.1503]
[1739393013906,14.34443364,194.22,194.08,14.34443364]
[1739393014108,14.34443364,194.22,194.11,14.34443364]
[1739393014307,5.149,194.21,194.17,5.1496]
[1739393014507,14.34443364,194.22,194.12,1.5159]
[1739393014707,0.03281875,194.21,194.19,5.149]
[1739393014908,5.148,194.24,194.12,1.5159]
[1739393015109,0.03536926,194.21,194.17,0.03868748]
[1739393015504,0.03536926,194.21,194.2,5.149]
[1739393022313,190.0,194.31,194.23,5.1482]
[1739393022314,5.1472,194.27,194.23,5.1482]
[1739393022514,5.1472,194.27,194.17,14.38312112]
[1739393022515,14.34443364,194.31,194.17,14.34443364]
[1739393022711,0.94235411,194.3,194.17,14.34443364]
[1739393022909,0.94235411,194.3,194.25,5.1476]
[1739393022910,6.08895411,194.3,194.25,5.1476]
[1739393023108,14.34443364,194.31,194.25,5.1476]
[1739393023313,0.94235411,194.3,194.25,5.1476]
[1739393023612,0.9799165,194.3,194.26,0.03374545]
[1739393024314,0.03756239,194.3,194.26,0.03374545]
[1739393025313,5.1472,194.27,194.26,0.03374545]
[1739393025711,14.34443364,194.28,194.16,1.6382]
[1739393025913,14.34443364,194.24,194.16,1.6382]
[1739393026615,19.49263364,194.24,194.19,5.1492]
[1739393026916,5.18628804,194.22,194.18,0.0325635]
[1739393027308,0.03748804,194.22,194.18,0.0325635]
[1739393028316,5.1491,194.2,194.18,0.0325635]
[1739393028718,0.03748804,194.22,194.18,0.0325635]
[1739393028916,5.18608804,194.22,194.18,5.1818635]
[1739393029118,0.03748804,194.22,194.18,0.0325635]
[1739393029512,14.34443364,194.3,194.18,0.0325635]
[1739393029712,5.1474,194.27,194.22,5.1483]
[1739393030519,5.1474,194.27,194.17,14.34443364]
[1739393030821,0.03604091,194.26,194.23,0.03726554]
[1739393031016,59.55820382,194.31,194.21,3.2087]
[1739393031317,59.55820382,194.31,194.23,14.38319389]
[1739393031714,59.55820382,194.31,194.25,5.1476]